bitfinex/quotes_ETHUSD_20220212
["timestamp","ask_amount","ask_price","bid_price","bid_amount"]
[1644662368045,0.01831138,2905.5,2905.0,0.4934537]
[1644662368911,0.01831138,2905.5,2905.0,3.9934537]
[1644662369106,3.796e-05,2905.6,2905.4,5.0]
[1644662369314,0.13221915,2906.7,2905.4,5.0]
[1644662369315,0.13221915,2906.7,2905.5,5.091]
[1644662369502,0.13221915,2906.7,2905.5,5.2653537]
[1644662369704,0.13221915,2906.7,2905.9,0.80065936]
[1644662369905,0.13221915,2906.7,2906.0,0.4934537]
[1644662371101,0.13221915,2906.7,2906.0,0.0024537]
[1644662371905,0.1719,2906.6,2905.6,0.0024537]
[1644662372943,0.13221915,2906.7,2905.6,0.0024537]
[1644662373137,0.13221915,2906.7,2905.7,0.83467414]
[1644662373338,0.13221915,2906.7,2905.8,0.0024537]
[1644662373539,0.00903087,2906.2,2905.8,0.0024537]
[1644662373740,0.00903087,2906.2,2905.7,0.83467414]
[1644662374347,0.13221915,2906.7,2905.7,0.83467414]
[1644662374546,0.00903101,2906.1,2905.8,3.62992283]
[1644662374844,0.00903101,2906.1,2905.7,0.83467414]
[1644662375449,0.13221915,2906.7,2905.7,0.83467414]
[1644662375645,0.13221915,2906.7,2906.2,0.76793998]
[1644662376503,0.13221915,2906.7,2906.3,3.38068181]
[1644662376800,0.13221915,2906.7,2906.4,0.491]
[1644662377094,0.13221915,2906.7,2906.5,3.51520152]
[1644662377095,0.00903054,2906.6,2906.5,3.51520152]
[1644662377294,0.00903054,2906.6,2906.5,3.94051348]
[1644662377495,0.00903054,2906.6,2906.5,0.491]
[1644662377894,0.13221915,2906.7,2906.5,3.98554261]
[1644662378101,0.0083754,2906.7,2906.5,3.991]
[1644662378298,0.1719,2907.8,2906.7,3.3]
[1644662378496,0.0008,2907.9,2906.8,0.491]
[1644662378796,1.18667115,2907.9,2906.8,0.6629]
[1644662378997,1.35777115,2907.8,2907.2,0.65239997]
[1644662379195,0.1719,2907.8,2906.8,0.491]
[1644662379397,1.18600694,2907.7,2906.8,0.491]
[1644662379598,0.1719,2907.6,2906.8,0.491]
[1644662379795,0.0008,2907.9,2906.8,0.491]
[1644662380238,0.0008,2907.9,2907.1,0.83186015]
[1644662380438,0.1227,2908.2,2907.1,0.83186015]
[1644662380643,0.98317,2908.2,2907.1,0.83186015]
[1644662380838,1.186364,2908.0,2906.8,0.491]
[1644662381039,1.486364,2908.1,2906.8,0.491]
[1644662381239,1.358264,2908.0,2906.8,0.491]
[1644662381440,1.186364,2907.9,2906.5,1.1364537]
[1644662381642,0.1719,2908.0,2906.5,1.1364537]
[1644662381643,0.1719,2907.8,2906.5,1.1364537]
[1644662381838,1.186364,2907.7,2906.5,1.1364537]
[1644662382039,1.358264,2907.6,2906.9,0.81486622]
[1644662382238,1.186364,2907.5,2906.9,0.81486622]
[1644662382440,1.186364,2907.4,2906.6,3.50095535]
[1644662382640,1.186364,2907.3,2906.6,3.50095535]
[1644662382839,0.64092428,2908.2,2906.6,3.50095535]
[1644662383041,0.00903003,2907.1,2906.7,1.0]
[1644662383244,0.00903003,2907.1,2906.6,3.64374986]
[1644662383440,0.00903003,2907.1,2906.7,0.64668781]
[1644662383899,0.1719,2907.8,2906.7,0.64668781]
[1644662384094,0.64092428,2908.0,2906.7,0.64668781]
[1644662384095,1.19073766,2907.7,2906.7,0.64668781]
[1644662384298,0.00903012,2907.0,2906.7,0.64668781]
[1644662384493,1.19062221,2906.9,2906.6,0.1719]
[1644662384693,1.19062221,2906.9,2906.5,0.0024537]
[1644662385291,1.19062221,2906.9,2906.5,3.35895027]
[1644662385496,0.64092428,2907.6,2906.5,3.35895027]
[1644662385497,0.00903031,2906.8,2906.6,0.1719]
[1644662385897,0.11438695,2906.5,2906.4,4.1165]
[1644662386693,0.11438695,2906.5,2906.4,4.80422317]
[1644662390049,0.11438695,2906.5,2906.4,4.1165]
[1644662390450,1.30426073,2906.5,2906.4,4.1165]
[1644662390655,1.30426073,2906.5,2905.9,0.00737722]
[1644662390851,1.18987378,2906.4,2905.9,0.00737722]
[1644662391057,1.18987378,2906.4,2906.1,0.76447901]
[1644662391492,0.11438695,2906.5,2906.1,0.76447901]
[1644662391894,0.11438695,2906.5,2905.9,0.00737722]
[1644662392292,0.11438695,2906.5,2905.7,1.1637]
[1644662392494,0.11438695,2906.5,2905.9,0.00737722]
[1644662392897,0.11438695,2906.5,2906.0,0.83383112]
[1644662393093,0.11438695,2906.5,2906.1,0.491]
[1644662397442,0.11438695,2906.5,2906.0,0.83383112]
[1644662399090,0.11438695,2906.5,2905.9,0.00747346]
[1644662399491,0.11438695,2906.5,2905.7,1.1637]
[1644662399897,0.11438695,2906.5,2905.9,0.00747346]
[1644662399898,0.1219,2906.4,2905.9,0.00747346]
[1644662400691,0.1219,2906.4,2905.5,0.25]
[1644662400893,0.1219,2906.4,2905.3,0.77317795]
[1644662401093,0.1219,2906.4,2905.9,0.00747593]
[1644662401993,0.1219,2906.4,2905.4,0.00239558]
[1644662402203,0.11438695,2906.5,2905.9,0.00747593]
[1644662403239,0.11438695,2906.5,2905.4,0.66529558]
[1644662403446,0.11438695,2906.5,2905.9,0.00747593]
[1644662403840,0.11438695,2906.5,2905.9,0.00987151]
[1644662404047,0.11438695,2906.5,2905.9,0.00747593]
[1644662404444,0.11438695,2906.5,2905.6,0.00239558]
[1644662404645,0.11438695,2906.5,2905.9,0.00754038]
[1644662404844,0.11438695,2906.5,2905.9,0.86058607]
[1644662405054,0.11438695,2906.5,2905.9,0.00993596]
[1644662405245,0.11438695,2906.5,2905.9,0.00754038]
[1644662405645,0.11438695,2906.5,2905.6,0.00239558]
[1644662405847,0.11438695,2906.5,2905.9,0.00754038]
[1644662406045,0.11438695,2906.5,2905.6,0.03256052]
[1644662406046,0.00556074,2905.7,2905.6,0.03256052]
[1644662406247,0.00556074,2905.7,2905.6,0.03016494]
[1644662406691,0.00556074,2905.7,2905.6,0.65272174]
[1644662407691,0.11438695,2906.5,2905.6,0.65272174]
[1644662407692,0.01994769,2906.5,2905.6,0.65272174]
[1644662407892,0.1719,2906.4,2905.7,0.00239558]
[1644662408091,0.1719,2906.4,2905.5,0.00239558]
[1644662408294,0.81282428,2906.4,2905.8,0.00226378]
[1644662408692,3.48161887,2906.3,2905.8,0.00226378]
[1644662408894,0.1719,2906.2,2905.8,0.00226378]
[1644662409096,0.1719,2906.3,2905.3,0.00239558]
[1644662409296,3.68936386,2906.3,2905.3,0.00239558]
[1644662409505,3.68936386,2906.3,2905.8,0.00752707]
[1644662409697,0.1719,2906.3,2905.8,0.00752707]
[1644662409898,3.76698849,2906.3,2905.8,0.00752707]
[1644662410144,4.92799849,2906.3,2905.8,0.00752707]
[1644662410342,0.64092428,2906.1,2904.9,0.00239558]
[1644662410542,4.93241887,2906.0,2904.9,0.00239558]
[1644662410743,4.93241887,2906.0,2905.8,0.00747822]
[1644662410744,4.11959459,2906.0,2905.8,0.00747822]
[1644662410946,0.1719,2905.9,2905.8,0.00747822]
[1644662411543,0.1719,2905.9,2904.9,0.00239558]
[1644662411744,4.00752922,2905.9,2904.9,0.00239558]
[1644662411947,4.00752922,2905.9,2905.7,0.00747835]
[1644662412154,0.1719,2905.9,2905.7,0.00747835]
[1644662412348,0.64092428,2905.8,2905.7,0.00747835]
[1644662412549,5.54829081,2905.8,2905.7,0.00747835]
[1644662412748,5.54829081,2905.8,2904.9,0.00239558]
[1644662412946,1.24587018,2905.7,2904.9,0.00239558]
[1644662413152,4.80395764,2905.7,2905.6,0.00747861]
[1644662413349,1.24587018,2905.7,2905.6,0.00747861]
[1644662413991,1.24587018,2905.7,2904.9,0.00239558]
[1644662414194,4.85195765,2905.6,2905.5,0.00747887]
[1644662414492,1.71787018,2905.6,2905.5,0.00747887]
[1644662414697,5.38662018,2905.6,2905.5,0.00747887]
[1644662415092,5.38662018,2905.6,2904.9,0.00239558]
[1644662415290,1.41777018,2905.5,2904.9,0.00239558]
[1644662415491,0.1719,2905.5,2905.4,0.00752083]
[1644662415690,1.43244777,2905.5,2905.4,0.00752083]
[1644662416394,6.73244777,2905.5,2904.4,0.00239558]
[1644662416594,1.26054777,2905.4,2905.3,0.00752109]
[1644662416792,1.73244777,2905.4,2905.3,0.00752109]
[1644662417395,2.59376777,2905.4,2905.3,0.00752109]
[1644662417637,2.59376777,2905.4,2904.2,0.00239558]
[1644662417845,0.76795301,2905.1,2904.8,0.0300899]
[1644662418043,0.1721,2905.3,2904.8,0.0300899]
[1644662418243,1.25857646,2905.2,2904.8,0.0300899]
[1644662418844,1.25857646,2905.2,2904.2,0.00239558]
[1644662419045,1.25857646,2905.2,2904.9,0.00751383]
[1644662419447,0.1721,2905.3,2904.9,0.00751383]
[1644662419854,4.9959,2905.8,2904.9,0.00751383]
[1644662419855,0.1721,2905.6,2904.9,0.00751383]
[1644662420046,3.9959,2905.8,2904.3,0.00239558]
[1644662420047,0.1721,2905.7,2904.3,0.00239558]
[1644662420250,0.1721,2905.7,2905.0,0.00751357]
[1644662420452,0.1721,2905.8,2905.0,0.00751357]
[1644662420648,3.328,2906.1,2905.0,0.00751357]
[1644662421257,1.25384769,2906.5,2904.9,3.3]
[1644662421512,0.63654045,2906.7,2905.2,3.3]
[1644662421703,0.63654045,2906.9,2905.5,0.81977437]
[1644662421905,0.63654045,2907.1,2905.8,0.01236615]
[1644662422101,0.2642,2907.2,2905.8,0.01236615]
[1644662422102,0.90074045,2907.2,2906.1,6.134]
[1644662422302,0.2642,2907.2,2906.3,5.0]
[1644662422506,0.2642,2907.2,2906.4,3.991]
[1644662422697,0.63654045,2907.9,2906.5,0.86012]
[1644662422897,0.63654045,2907.9,2906.6,3.991]
[1644662423099,0.63654045,2908.0,2906.7,0.1719]
[1644662423399,0.63654045,2908.0,2906.8,0.491]
[1644662423600,0.86079527,2908.2,2906.8,0.491]
[1644662423601,0.63654045,2907.9,2906.9,3.5]
[1644662423802,0.63654045,2908.1,2907.0,1.491]
[1644662424000,0.63654045,2908.1,2907.3,0.63802032]
[1644662424203,0.63654045,2908.1,2907.4,0.491]
[1644662424407,1.49733572,2908.3,2907.5,8.5]
[1644662424606,1.54599736,2908.5,2907.6,0.491]
[1644662424607,0.63654045,2908.4,2907.6,0.491]
[1644662424805,0.25088136,2908.5,2907.7,0.27639994]
[1644662424806,0.88742181,2908.5,2907.7,0.27639994]
[1644662425010,0.88742181,2908.5,2907.8,0.491]
[1644662425237,0.88742181,2908.5,2907.9,0.68530991]
[1644662425238,0.00902792,2908.0,2907.9,0.68530991]
[1644662425439,0.00902792,2908.0,2907.9,1.17630991]
[1644662426039,0.88742181,2908.5,2907.9,0.491]
[1644662426241,0.00902787,2908.1,2907.9,0.491]
[1644662426639,0.15440855,2907.8,2907.7,0.191521]
[1644662429091,0.15440855,2907.8,2907.6,0.491]
[1644662429291,0.15440855,2907.8,2907.3,0.491]
[1644662429892,0.00902824,2907.7,2907.3,0.491]
[1644662430299,0.00902824,2907.7,2907.5,0.68006418]
[1644662430893,0.15440855,2907.8,2907.5,0.68006418]
[1644662431093,0.0090282,2907.7,2907.5,0.68006418]
[1644662432096,0.17684677,2907.8,2907.5,0.68006418]
[1644662432295,0.0090282,2907.7,2907.5,0.68006418]
[1644662433338,0.17684677,2907.8,2907.5,0.68006418]
[1644662433541,0.0090282,2907.7,2907.5,0.68006418]
[1644662434545,0.17684677,2907.8,2907.5,0.68006418]
[1644662435044,0.17684677,2907.8,2907.6,0.491]
[1644662436051,0.17684677,2907.8,2907.0,4.0467]
[1644662436247,0.17684677,2907.8,2907.0,3.8748]
[1644662436248,0.34874677,2907.8,2907.0,3.8748]
[1644662436495,0.35463813,2907.8,2907.0,3.8748]
[1644662436892,0.99117858,2907.8,2907.3,0.71608792]
[1644662437093,0.00903634,2907.5,2907.3,0.71608792]
[1644662438101,0.18273813,2907.8,2907.3,0.71608792]
[1644662438300,0.00903634,2907.5,2907.3,0.71608792]
[1644662439197,0.18273813,2907.8,2907.3,0.71608792]
[1644662439398,1.14002123,2907.7,2907.3,0.71608792]
[1644662439597,0.00903634,2907.5,2907.3,0.71608792]
[1644662439797,1.14002123,2907.4,2907.3,0.71608792]
[1644662439998,1.14002123,2907.4,2907.1,0.491]
[1644662440240,1.14002123,2907.4,2907.0,3.8748]
[1644662440649,0.001,2907.5,2907.0,3.8748]
[1644662440941,0.00903648,2907.4,2907.1,3.34552117]
[1644662441139,0.00903648,2907.4,2907.0,3.8748]
[1644662441342,0.00903648,2907.4,2907.3,0.68366633]
[1644662441640,0.18354116,2907.8,2907.3,0.68366633]
[1644662441841,0.00838124,2907.5,2907.3,0.68366633]
[1644662442040,0.00838124,2907.5,2906.8,0.491]
[1644662442041,1.13994396,2907.4,2906.8,0.491]
[1644662442243,1.13994396,2907.4,2906.9,4.01]
[1644662443147,1.14832539,2907.3,2907.2,0.65682695]
[1644662443996,1.13994396,2907.3,2907.2,0.65682695]
[1644662444199,1.13994396,2907.3,2906.9,4.01]
[1644662445298,1.13994396,2907.3,2907.2,0.84595517]
[1644662445498,3.14e-06,2907.4,2907.2,0.84595517]
[1644662445711,0.02796725,2907.5,2907.3,3.40302547]
[1644662445899,0.63754045,2908.2,2907.5,3.3]
[1644662446101,0.63654045,2908.2,2907.6,1.9423688]
[1644662446301,0.63754045,2908.4,2907.4,6.134]
[1644662446499,0.1719,2908.4,2908.0,0.76579148]
[1644662446705,0.1729,2908.4,2908.0,0.76579148]
[1644662447101,0.1719,2908.4,2908.0,0.76579148]
[1644662447649,0.001,2908.6,2908.0,0.76579148]
[1644662447650,0.001,2908.6,2908.2,2.6]
[1644662447844,0.00842939,2908.3,2908.0,0.76579148]
[1644662448047,0.00842939,2908.3,2908.1,0.1719]
[1644662448250,0.00842939,2908.3,2908.2,0.491]
[1644662448845,0.63654045,2908.8,2908.2,0.491]
[1644662449046,0.00842934,2908.4,2908.2,0.491]
[1644662449446,0.00842934,2908.4,2908.3,0.83587716]
[1644662450045,0.63654045,2908.8,2908.3,0.83587716]
[1644662450250,0.36168075,2908.1,2907.8,0.66634268]
[1644662450448,0.36168075,2908.1,2907.9,0.491]
[1644662450650,0.36168075,2908.1,2908.0,0.1719]
[1644662450852,0.36168075,2908.1,2908.0,0.6629]
[1644662451496,0.36168075,2908.1,2908.0,0.491]
[1644662451695,0.36168075,2908.1,2908.0,0.6629]
[1644662451897,0.36168075,2908.1,2908.0,0.491]
[1644662452299,0.36168075,2908.1,2907.8,0.66634268]
[1644662453097,0.36168075,2908.1,2907.7,4.1959]
[1644662453700,0.1719,2908.0,2907.7,4.1959]
[1644662453901,0.18031734,2908.0,2907.2,5.0174]
[1644662454100,0.00841734,2908.0,2907.2,1.1703]
[1644662454300,0.00841734,2908.0,2907.1,4.0927]
[1644662454600,0.18031734,2908.0,2907.1,4.0927]
[1644662454801,0.1719,2908.0,2907.1,4.0927]
[1644662455244,0.00841767,2907.7,2907.1,4.0927]
[1644662455451,0.00841767,2907.7,2907.6,0.88794751]
[1644662456053,0.36168075,2908.1,2907.6,0.88794751]
[1644662456249,0.36168075,2908.1,2907.1,4.0927]
[1644662456450,0.00841758,2907.8,2907.1,4.0927]
[1644662456849,0.18753878,2908.1,2907.1,4.0927]
[1644662457248,0.18753878,2908.1,2907.6,0.77661004]
[1644662457852,0.18753878,2908.1,2907.1,4.0927]
[1644662458890,0.02692,2908.0,2907.3,0.81129894]
[1644662460498,0.18753878,2908.1,2907.3,0.81129894]
[1644662460702,0.02691,2907.9,2907.3,0.81129894]
[1644662460901,0.0269,2908.0,2907.3,0.81129894]
[1644662461101,0.00904099,2907.9,2907.3,0.81129894]
[1644662461700,0.00904099,2907.9,2907.8,0.6515427]
[1644662462200,0.18753878,2908.1,2907.2,0.20288359]
[1644662462402,0.03530618,2908.0,2907.2,0.20288359]
[1644662463260,0.18853878,2908.1,2907.2,0.20288359]
[1644662463465,0.00838584,2907.9,2907.5,0.786402]
[1644662464165,0.00838584,2907.9,2907.2,0.20288359]
[1644662464366,0.86918111,2907.9,2907.2,0.20288359]
[1644662464567,0.86079527,2907.7,2907.2,0.20288359]
[1644662464764,0.02697,2907.8,2907.2,0.20288359]
[1644662464765,0.88776527,2907.8,2907.2,0.20288359]
[1644662465164,0.88776527,2907.8,2907.2,0.98093378]
[1644662465367,0.02697,2907.8,2907.2,0.98093378]
[1644662465667,1.04101567,2907.7,2907.2,0.98093378]
[1644662465866,0.001,2907.6,2907.2,0.80903378]
[1644662466268,1.04201567,2907.7,2906.9,3.5688386]
[1644662466499,1.04201567,2907.7,2906.9,0.1719]
[1644662466500,0.001,2907.6,2906.9,0.1719]
[1644662466893,0.001,2907.6,2906.9,3.54698204]
[1644662466894,0.6423976,2907.4,2906.9,3.54698204]
[1644662467093,0.6423976,2907.4,2907.2,0.62747862]
[1644662467296,1.68441327,2907.4,2907.2,0.62747862]
[1644662467494,1.04201567,2907.3,2907.2,0.62747862]
[1644662470142,1.04201567,2907.3,2906.8,0.6629]
[1644662470341,0.64235123,2907.1,2906.8,0.6629]
[1644662470746,1.6843669,2907.1,2906.8,0.6629]
[1644662470944,1.04201567,2907.0,2906.8,0.6629]
[1644662471245,1.04201567,2906.9,2906.8,0.6629]
[1644662471652,1.04201567,2906.9,2906.8,1.35375273]
[1644662472851,1.04201567,2906.9,2906.8,0.1719]
[1644662473054,1.6843669,2906.9,2906.8,0.1719]
[1644662474300,1.04201567,2906.9,2906.8,0.1719]
[1644662474695,1.0428972,2906.9,2906.8,0.1719]
[1644662475597,1.0428972,2906.9,2906.7,0.00718146]
[1644662475798,1.8544677,2906.8,2906.7,0.00718146]
[1644662476199,1.04101567,2906.8,2906.7,0.6696437]
[1644662476400,1.02901567,2906.8,2906.7,0.66246224]
[1644662476599,1.00501567,2906.8,2906.7,0.66246224]
[1644662476806,0.98021567,2906.8,2906.7,0.66246224]
[1644662476999,0.97141567,2906.8,2906.7,1.15346224]
[1644662477198,0.03047464,2906.9,2906.7,1.15346224]
[1644662477839,0.03047464,2906.9,2906.7,1.16090608]
[1644662478238,0.02727464,2906.9,2906.7,1.16090608]
[1644662478440,0.01447464,2906.9,2906.7,1.16090608]
[1644662478849,0.01447464,2906.9,2906.7,1.15346224]
[1644662479142,0.01447464,2906.9,2906.7,1.16090608]
[1644662479547,0.01447464,2906.9,2906.7,0.66990608]
[1644662480144,0.01447464,2906.9,2906.7,0.66246224]
[1644662480343,0.01447464,2906.9,2906.7,0.66990608]
[1644662481412,0.01432491,2906.8,2906.7,0.66246224]
[1644662481603,0.01432491,2906.8,2906.7,0.66986769]
[1644662482603,0.01432491,2906.8,2906.7,0.66246224]
[1644662483503,0.01432491,2906.8,2906.6,0.00740558]
[1644662483703,0.01432491,2906.8,2906.0,4.1402]
[1644662483903,0.01432491,2906.8,2906.6,0.00740558]
[1644662484802,0.01432491,2906.8,2906.4,0.76508564]
[1644662485244,0.01432491,2906.8,2906.6,0.00741132]
[1644662485746,0.1719,2906.7,2906.6,0.00741132]
[1644662486244,0.1719,2906.7,2906.0,4.1402]
[1644662486446,0.1719,2906.7,2906.2,0.73101815]
[1644662487447,0.1719,2906.7,2905.8,0.01927721]
[1644662488448,0.1719,2906.7,2906.3,0.62755601]
[1644662488649,0.1719,2906.7,2906.1,0.00222671]
[1644662488911,0.01432491,2906.8,2906.1,0.00222671]
[1644662489101,0.01432491,2906.8,2906.2,0.491]
[1644662489900,0.01432491,2906.8,2906.4,0.00222651]
[1644662490102,0.01432491,2906.8,2906.7,0.78215364]
[1644662490504,0.01432491,2906.8,2906.7,1.27315364]
[1644662491103,0.01525042,2906.9,2906.7,1.27315364]
[1644662491307,0.01525042,2906.9,2906.7,0.78215364]
[1644662492312,0.02400135,2906.9,2906.7,1.27315364]
[1644662493347,0.01525042,2906.9,2906.8,0.1719]
[1644662493548,0.02400135,2906.9,2906.8,0.6629]
[1644662494552,0.01525042,2906.9,2906.8,0.6629]
[1644662495349,0.01525042,2906.9,2906.8,0.491]
[1644662495548,0.01525042,2906.9,2906.7,0.78215364]
[1644662495751,0.01525042,2906.9,2906.7,1.27315364]
[1644662496789,0.01337176,2906.8,2906.7,1.27315364]
[1644662497189,0.98345566,2906.8,2906.7,1.27315364]
[1644662498290,0.98345566,2906.8,2906.7,1.74004453]
[1644662498492,0.006363,2906.9,2906.8,2.75]
[1644662498694,0.006363,2906.9,2906.8,9.0129]
[1644662498901,6.027e-05,2907.1,2906.9,3.3]
[1644662499096,6.027e-05,2907.1,2907.0,0.6629]
[1644662499295,6.027e-05,2907.1,2907.0,1.6629]
[1644662501147,0.64081284,2907.6,2907.0,1.6629]
[1644662501349,0.64081284,2907.5,2907.0,0.491]
[1644662502349,0.64081284,2907.5,2907.3,0.87176256]
[1644662502547,0.64081284,2907.5,2907.4,0.491]
[1644662504393,0.64222495,2907.5,2907.4,0.491]
[1644662505097,0.65227735,2907.6,2907.4,0.491]
[1644662505297,0.64222495,2907.6,2907.4,0.491]
[1644662505505,0.65127735,2907.6,2907.4,0.491]
[1644662506298,0.0090524,2907.6,2907.4,0.491]
[1644662506497,0.64222495,2907.8,2907.1,0.90311773]
[1644662506702,0.64222495,2907.8,2907.7,0.89086491]
[1644662506902,0.64322495,2907.9,2907.7,1.68186491]
[1644662507099,0.19224427,2908.1,2907.7,1.68186491]
[1644662507299,0.82976373,2908.1,2907.8,3.77610565]
[1644662507498,0.82976373,2908.1,2907.9,0.491]
[1644662507945,0.83612594,2908.1,2908.0,3.38576716]
[1644662508151,0.83612594,2908.1,2908.0,3.87676716]
[1644662508152,0.19390099,2908.1,2908.0,3.87676716]
[1644662508346,0.19390099,2908.1,2908.0,0.491]
[1644662508749,0.001,2908.2,2908.1,3.25]
[1644662508952,0.00370549,2908.4,2908.1,4.25]
[1644662509158,0.64172556,2908.5,2908.1,4.741]
[1644662509350,0.64543105,2908.6,2908.2,1.0]
[1644662509649,0.64172556,2908.6,2908.4,0.70477174]
[1644662509849,0.64172556,2908.6,2908.5,0.491]
[1644662510852,0.1719,2908.7,2908.6,3.3]
[1644662511060,0.1719,2908.7,2908.6,6.80115587]
[1644662511254,0.1719,2908.7,2908.6,8.46405587]
[1644662511895,0.1719,2908.7,2908.6,8.29215587]
[1644662512296,0.001,2909.6,2909.4,0.79870188]
[1644662512496,0.1718,2909.6,2909.4,0.491]
[1644662512695,0.001,2909.7,2909.4,0.491]
[1644662512897,0.062209,2909.3,2908.8,6.90104263]
[1644662513095,0.062209,2909.3,2908.9,0.491]
[1644662513603,0.012209,2909.3,2908.9,0.87735831]
[1644662513802,0.012209,2909.3,2908.5,0.25]
[1644662513803,1.03259527,2909.2,2908.5,0.25]
[1644662514001,0.001,2909.1,2908.4,3.33453616]
[1644662514203,0.00370549,2909.1,2908.6,0.491]
[1644662514401,0.01276158,2909.2,2908.6,0.791]
[1644662514600,0.00905609,2909.2,2908.7,3.3341653]
[1644662514801,0.00905609,2909.2,2908.8,0.491]
[1644662515003,0.012209,2909.3,2908.8,0.491]
[1644662515245,0.012209,2909.3,2908.9,0.78869801]
[1644662515246,0.00905623,2909.1,2908.9,0.78869801]
[1644662516046,0.012209,2909.3,2908.9,0.78869801]
[1644662516449,0.00905618,2909.1,2908.9,0.78869801]
[1644662517250,0.012209,2909.3,2908.9,0.78869801]
[1644662517648,0.00905618,2909.1,2908.9,4.28869801]
[1644662517853,0.00905618,2909.1,2909.0,9.991]
[1644662517854,5.618e-05,2909.1,2909.0,9.991]
[1644662518057,0.1728,2910.2,2910.1,0.73209382]
[1644662518251,0.1718,2910.2,2910.1,0.491]
[1644662518454,1.01441149,2910.2,2910.1,0.491]
[1644662518650,1.01541149,2910.2,2910.1,0.491]
[1644662519299,1.01541149,2910.2,2910.1,1.20467133]
[1644662520204,1.01541149,2910.2,2910.1,0.491]
[1644662521209,0.00904715,2910.3,2910.2,3.3]
[1644662521507,0.00904715,2910.3,2910.2,15.72760222]
[1644662521902,0.00904715,2910.3,2910.2,15.42760222]
[1644662522102,0.00369445,2911.0,2910.2,10.57821198]
[1644662522302,0.66836019,2911.1,2910.2,7.27821198]
[1644662522503,0.00880195,2910.4,2910.2,7.27821198]
[1644662523343,0.00369445,2910.8,2910.2,7.27821198]
[1644662523550,1.50318194,2911.1,2910.2,7.27821198]
[1644662523551,0.00869686,2910.4,2910.2,7.27821198]
[1644662524147,0.00869686,2910.4,2910.2,0.491]
[1644662524348,0.00869686,2910.4,2909.7,1.1531]
[1644662524547,7.6318,2910.6,2909.4,0.1718]
[1644662524750,0.1718,2910.3,2909.4,0.1718]
[1644662524947,0.00369445,2910.2,2909.5,0.00869982]
[1644662525145,0.1718,2910.2,2909.8,0.64019592]
[1644662525349,0.17549445,2910.3,2909.8,0.64019592]
[1644662525548,0.00369445,2910.3,2909.8,0.64019592]
[1644662525950,0.00894219,2910.2,2909.8,0.64019592]
[1644662526399,0.00894219,2910.2,2909.9,1.78146092]
[1644662526593,0.00894219,2910.2,2910.0,0.491]
[1644662526991,0.1718,2910.3,2910.0,0.491]
[1644662527195,0.00631548,2910.2,2910.0,0.491]
[1644662527592,0.00631548,2910.2,2909.8,0.64019592]
[1644662527793,0.00631548,2910.2,2909.7,0.1718]
[1644662527993,0.00631548,2910.2,2909.3,0.491]
[1644662528193,0.03732988,2910.4,2909.3,0.491]
[1644662528393,0.00631548,2910.1,2909.3,0.491]
[1644662529396,0.03632988,2910.4,2909.6,0.73911387]
[1644662529598,0.00631548,2909.8,2909.6,0.73911387]
[1644662530640,0.03632988,2910.4,2909.6,0.73911387]
[1644662530842,0.00905275,2909.8,2909.6,0.73911387]
[1644662531746,0.00369445,2910.6,2909.6,0.73911387]
[1644662531747,0.00369445,2910.4,2909.6,0.73911387]
[1644662531947,0.00905275,2909.8,2909.6,0.73911387]
[1644662532650,0.00905275,2909.8,2909.5,0.00905396]
[1644662533049,0.17549445,2910.4,2909.6,0.491]
[1644662533250,0.00905279,2909.8,2909.6,0.791]
[1644662533448,0.00905279,2909.8,2909.7,0.1718]
[1644662533648,0.00905279,2909.8,2909.7,0.98838477]
[1644662534104,0.00369445,2910.5,2909.6,0.491]
[1644662534494,0.0090527,2909.9,2909.6,0.491]
[1644662534895,0.0090527,2909.9,2909.5,0.00905407]
[1644662535294,0.1728,2910.2,2909.2,0.6628]
[1644662535496,0.6925692,2910.0,2909.2,1.53599856]
[1644662535797,0.00905275,2909.8,2909.5,0.00905396]
[1644662536613,0.00369445,2910.1,2909.3,0.1718]
[1644662536799,0.00369445,2909.9,2909.4,0.491]
[1644662536999,0.00905279,2909.8,2909.5,0.00905385]
[1644662537843,0.00369445,2910.2,2909.4,0.491]
[1644662537844,0.1718,2910.1,2909.4,0.491]
[1644662538044,0.00905279,2909.8,2909.5,0.00905385]
[1644662539047,0.00369445,2910.0,2909.4,0.491]
[1644662539256,0.00905279,2909.8,2909.5,0.00905385]
[1644662540053,0.00905279,2909.8,2909.7,0.82426791]
[1644662540252,0.1718,2910.1,2909.4,0.491]
[1644662540451,0.00905279,2909.8,2909.5,0.00905385]
[1644662541497,0.1718,2910.1,2909.4,0.491]
[1644662541498,0.75092603,2909.7,2909.4,0.491]
[1644662541695,0.00905279,2909.8,2909.5,0.00905385]
[1644662541900,0.75112635,2909.7,2909.5,0.00905385]
[1644662542495,0.00905279,2909.8,2909.6,0.80218007]
[1644662542697,0.75026341,2909.7,2909.6,0.80218007]
[1644662542896,0.75931625,2909.7,2909.6,0.80218007]
[1644662543297,0.75931625,2909.7,2909.6,1.10218007]
[1644662543298,0.00905284,2909.7,2909.6,1.10218007]
[1644662543499,0.00905284,2909.7,2909.6,0.80218007]
[1644662543699,0.7593821,2909.7,2909.5,0.30905375]
[1644662543897,0.00369445,2910.3,2909.4,1.491]
[1644662543898,0.00469445,2910.3,2909.4,0.791]
[1644662544102,0.00905279,2909.8,2909.5,0.00905385]
[1644662544602,0.74627385,2909.7,2909.5,0.00905385]
[1644662544804,0.74627385,2909.7,2909.6,0.7556881]
[1644662545244,0.00905284,2909.7,2909.6,0.7556881]
[1644662546046,0.75524334,2909.7,2909.6,0.7556881]
[1644662546244,0.7461905,2909.7,2909.6,0.7556881]
[1644662546444,0.7461905,2909.7,2909.2,4.25549529]
[1644662546644,0.74988495,2909.7,2909.5,0.80585122]
[1644662546845,0.7461905,2909.7,2909.5,0.80585122]
[1644662547448,0.7461905,2909.7,2909.3,0.791]
[1644662547647,7.341171,2909.5,2909.3,0.491]
[1644662547848,0.7471905,2909.4,2909.3,0.491]
[1644662548449,0.7471905,2909.4,2909.0,0.51881054]
[1644662548750,0.7461905,2909.3,2909.0,0.51881054]
[1644662548998,0.7461905,2909.2,2909.0,0.51881054]
[1644662549200,0.7461905,2909.1,2909.0,0.51881054]
[1644662549805,0.7461905,2909.1,2908.6,0.1718]
[1644662550006,0.7461905,2909.0,2908.9,0.00274653]
[1644662550200,0.9179905,2909.0,2908.9,0.00274653]
[1644662550803,0.9189905,2909.0,2908.9,0.00274653]
[1644662551001,0.9189905,2909.0,2908.6,0.1718]
[1644662551204,0.9189905,2909.0,2907.8,1.1097998]